fUST/lending_fUST_20240626
["ID","MTS","AMOUNT","RATE_DAILY","PERIOD"]
[330389941,1719341451359,-151.0,0.00016438,2]
[330389943,1719341451368,-198.167483,0.00016438,2]
[330389945,1719341451377,-500.0,0.00016438,2]
[330389947,1719341451388,-5386.77,0.00016438,2]
[330389949,1719341451396,-500.0,0.00016438,2]
[330389951,1719341451405,-500.0,0.00016438,2]
[330389953,1719341451414,-646.7,0.00016438,2]
[330389955,1719341451423,-500.0,0.00016438,2]
[330389957,1719341451432,-500.0,0.00016438,2]
[330389959,1719341451442,-500.0,0.00016438,2]
[330389961,1719341451451,-500.0,0.00016438,2]
[330389963,1719341451460,-500.0,0.00016438,2]
[330389965,1719341451469,-500.0,0.00016438,2]
[330389967,1719341451479,-500.0,0.00016438,2]
[330389969,1719341451488,-500.0,0.00016438,2]
[330389971,1719341451497,-500.0,0.00016438,2]
[330389973,1719341451507,-500.0,0.00016438,2]
[330389975,1719341451516,-500.0,0.00016438,2]
[330389977,1719341451525,-500.0,0.00016438,2]
[330389979,1719341451536,-548.97120515,0.00016438,2]
[330389981,1719341451547,-500.0,0.00016438,2]
[330389983,1719341451556,-500.0,0.00016438,2]
[330389985,1719341451566,-507.10975394,0.00016438,2]
[330389987,1719341451575,-500.0,0.00016438,2]
[330389988,1719341451586,-500.0,0.00016438,2]
[330389990,1719341451595,-1366.53,0.00016438,2]
[330389992,1719341451604,-279.89411023,0.00016438,2]
[330389994,1719341451613,-613.99,0.00016438,2]
[330389996,1719341451622,-500.0,0.00016438,2]
[330389998,1719341451631,-500.0,0.00016438,2]
[330389999,1719341451640,-835.96,0.00016438,2]
[330390001,1719341451650,-253.78539473,0.00016438,2]
[330390003,1719341451659,-503.15745906,0.00016438,2]
[330390006,1719341451669,-500.0,0.00016438,2]
[330390007,1719341451680,-500.0,0.00016438,2]
[330390009,1719341451689,-500.0,0.00016438,2]
[330390011,1719341451699,-151.0,0.00016438,2]
[330390013,1719341451708,-151.0,0.00016438,2]
[330390015,1719341451717,-151.0,0.00016438,2]
[330390017,1719341451726,-151.0,0.00016438,2]
[330390019,1719341451736,-500.0,0.00016438,2]
[330390021,1719341451746,-151.0,0.00016438,2]
[330390022,1719341451755,-151.0,0.00016438,2]
[330390023,1719341451765,-151.0,0.00016438,2]
[330390024,1719341451774,-151.0,0.00016438,2]
[330390025,1719341451785,-508.66610979,0.00016438,2]
[330390026,1719341451795,-151.0,0.00016438,2]
[330390028,1719341451803,-151.0,0.00016438,2]
[330390029,1719341451814,-151.0,0.00016438,2]
[330390031,1719341451824,-273.85410432,0.00016438,2]
[330390033,1719341451833,-5691.23,0.00016438,2]
[330390035,1719341451843,-199.57799874,0.00016438,2]
[330390037,1719341451852,-10805.26,0.00016438,2]
[330390039,1719341451861,-506.04821028,0.00016438,2]
[330390041,1719341451870,-336.08300064,0.00016438,2]
[330390043,1719341451879,-500.0,0.00016438,2]
[330390045,1719341451888,-1277.76,0.00016438,2]
[330390047,1719341451898,-500.0,0.00016438,2]
[330390049,1719341451907,-500.0,0.00016438,2]
[330390051,1719341451916,-500.0,0.00016438,2]
[330390053,1719341451925,-500.0,0.00016438,2]
[330390055,1719341451934,-506.21725495,0.00016438,2]
[330390057,1719341451944,-500.0,0.00016438,2]
[330390058,1719341451952,-500.0,0.00016438,2]
[330390059,1719341451962,-3319.6,0.00016438,2]
[330390060,1719341451971,-500.0,0.00016438,2]
[330390061,1719341451980,-799.18,0.00016438,2]
[330390062,1719341451989,-508.35952496,0.00016438,2]
[330390063,1719341451998,-500.0,0.00016438,2]
[330390064,1719341452007,-500.0,0.00016438,2]
[330390065,1719341452016,-507.05868569,0.00016438,2]
[330390066,1719341452026,-500.0,0.00016438,2]
[330390067,1719341452036,-500.0,0.00016438,2]
[330390068,1719341452045,-500.0,0.00016438,2]
[330390069,1719341452054,-500.0,0.00016438,2]
[330390070,1719341452063,-500.0,0.00016438,2]
[330390071,1719341452073,-500.0,0.00016438,2]
[330390072,1719341452082,-500.0,0.00016438,2]
[330390073,1719341452091,-500.0,0.00016438,2]
[330390074,1719341452101,-603.83,0.00016438,2]
[330390075,1719341452110,-516.13617647,0.00016438,2]
[330390076,1719341452119,-746.3,0.00016438,2]
[330390077,1719341452128,-500.0,0.00016438,2]
[330390078,1719341452137,-500.0,0.00016438,2]
[330390079,1719341452146,-500.0,0.00016438,2]
[330390080,1719341452155,-508.57059633,0.00016438,2]
[330390081,1719341452164,-500.0,0.00016438,2]
[330390082,1719341452173,-526.62618972,0.00016438,2]
[330390083,1719341452182,-500.0,0.00016438,2]
[330390084,1719341452191,-500.0,0.00016438,2]
[330390085,1719341452200,-500.8,0.00016438,2]
[330390086,1719341452209,-269.286312,0.00016438,2]
[330390087,1719341452218,-269.286312,0.00016438,2]
[330390088,1719341452228,-269.286312,0.00016438,2]
[330390089,1719341452236,-500.0,0.00016438,2]
[330390090,1719341452246,-269.286312,0.00016438,2]
[330390091,1719341452255,-269.286312,0.00016438,2]
[330390092,1719341452264,-500.0,0.00016438,2]
[330390093,1719341452274,-269.286312,0.00016438,2]
[330390094,1719341452287,-269.286312,0.00016438,2]
[330390095,1719341452296,-269.286312,0.00016438,2]
[330390096,1719341452308,-500.0,0.00016438,2]
[330390097,1719341452318,-269.286312,0.00016438,2]
[330390098,1719341452327,-269.286312,0.00016438,2]
[330390099,1719341452336,-500.0,0.00016438,2]
[330390100,1719341452346,-500.0,0.00016438,2]
[330390101,1719341452355,-269.286312,0.00016438,2]
[330390102,1719341452364,-269.286312,0.00016438,2]
[330390103,1719341452373,-500.0,0.00016438,2]
[330390104,1719341452383,-151.0,0.00016438,2]
[330390105,1719341452392,-269.286312,0.00016438,2]
[330390106,1719341452402,-151.0,0.00016438,2]
[330390107,1719341452411,-269.286312,0.00016438,2]
[330390108,1719341452420,-151.0,0.00016438,2]
[330390109,1719341452429,-269.286312,0.00016438,2]
[330390110,1719341452438,-269.286312,0.00016438,2]
[330390111,1719341452447,-269.286312,0.00016438,2]
[330390112,1719341452456,-269.286312,0.00016438,2]
[330390113,1719341452465,-500.0,0.00016438,2]
[330390114,1719341452475,-269.286312,0.00016438,2]
[330390115,1719341452484,-500.0,0.00016438,2]
[330390116,1719341452493,-269.286306,0.00016438,2]
[330390117,1719341452502,-151.0,0.00016438,2]
[330390118,1719341452511,-335.29754571,0.00016438,2]
[330390119,1719341452520,-2233.7,0.00016438,2]
[330390120,1719341452529,-502.16926273,0.00016438,2]
[330390121,1719341452540,-506.326611,0.00016438,2]
[330390122,1719341452549,-500.0,0.00016438,2]
[330390123,1719341452558,-500.0,0.00016438,2]
[330390124,1719341452566,-500.0,0.00016438,2]
[330390125,1719341452575,-500.0,0.00016438,2]
[330390126,1719341452584,-696.3,0.00016438,2]
[330390127,1719341452594,-151.0,0.00016438,2]
[330390128,1719341452602,-420.38507536,0.00016438,2]
[330390129,1719341452611,-151.0,0.00016438,2]
[330390130,1719341452621,-151.0,0.00016438,2]
[330390131,1719341452631,-151.0,0.00016438,2]
[330390132,1719341452642,-151.0,0.00016438,2]
[330390133,1719341452651,-329.15423,0.00016438,2]
[330390134,1719341452660,-151.0,0.00016438,2]
[330390135,1719341452668,-329.15423,0.00016438,2]
[330390136,1719341452679,-151.0,0.00016438,2]
[330390137,1719341452688,-329.15423,0.00016438,2]
[330390138,1719341452697,-151.0,0.00016438,2]
[330390139,1719341452706,-329.15423,0.00016438,2]
[330390140,1719341452715,-217.014462,0.00016438,2]
[330390141,1719341452724,-329.15423,0.00016438,2]
[330390142,1719341452733,-329.15423,0.00016438,2]
[330390143,1719341452742,-500.0,0.00016438,2]
[330390144,1719341452751,-532.1617535,0.00016438,2]
[330390145,1719341452760,-329.15423,0.00016438,2]
[330390146,1719341452769,-329.15423,0.00016438,2]
[330390147,1719341452778,-329.15423,0.00016438,2]
[330390148,1719341452787,-500.0,0.00016438,2]
[330390149,1719341452797,-329.15423,0.00016438,2]
[330390150,1719341452808,-500.0,0.00016438,2]
[330390151,1719341452902,-329.15423,0.00016438,2]
[330390152,1719341452923,-329.15423,0.00016438,2]
[330390153,1719341452932,-329.15423,0.00016438,2]
[330390154,1719341452941,-329.15423,0.00016438,2]
[330390155,1719341452950,-643.313059,0.00016438,2]
[330390156,1719341452959,-329.15423,0.00016438,2]
[330390157,1719341452968,-500.0,0.00016438,2]
[330390158,1719341452977,-643.313059,0.00016438,2]
[330390159,1719341452986,-329.15423,0.00016438,2]
[330390160,1719341452995,-643.313059,0.00016438,2]
[330390161,1719341453004,-906.25,0.00016438,2]
[330390162,1719341453013,-643.313059,0.00016438,2]
[330390163,1719341453022,-329.15423,0.00016438,2]
[330390164,1719341453031,-643.313059,0.00016438,2]
[330390165,1719341453042,-329.15423,0.00016438,2]
[330390166,1719341453051,-643.313059,0.00016438,2]
[330390167,1719341453061,-329.15423,0.00016438,2]
[330390168,1719341453070,-500.0,0.00016438,2]
[330390169,1719341453079,-643.313059,0.00016438,2]
[330390170,1719341453088,-329.154235,0.00016438,2]
[330390171,1719341453096,-643.313059,0.00016438,2]
[330390172,1719341453105,-151.0,0.00016438,2]
[330390173,1719341453114,-500.0,0.00016438,2]
[330390174,1719341453123,-151.0,0.00016438,2]
[330390175,1719341453133,-541.89080139,0.00016438,2]
[330390176,1719341453142,-500.0,0.00016438,2]
[330390177,1719341453151,-643.313059,0.00016438,2]
[330390178,1719341453161,-806.14,0.00016438,2]
[330390179,1719341453170,-1208.71,0.00016438,2]
[330390180,1719341453179,-643.313059,0.00016438,2]
[330390181,1719341453188,-643.313059,0.00016438,2]
[330390182,1719341453197,-151.0,0.00016438,2]
[330390183,1719341453206,-643.313059,0.00016438,2]
[330390184,1719341453215,-504.62569953,0.00016438,2]
[330390185,1719341453224,-151.0,0.00016438,2]
[330390186,1719341453233,-643.313059,0.00016438,2]
[330390187,1719341453243,-500.0,0.00016438,2]
[330390188,1719341453253,-991.87,0.00016438,2]
[330390189,1719341453262,-643.313059,0.00016438,2]
[330390190,1719341453271,-151.0,0.00016438,2]
[330390191,1719341453281,-500.0,0.00016438,2]
[330390192,1719341453294,-500.0,0.00016438,2]
[330390194,1719341453305,-151.0,0.00016438,2]
[330390195,1719341453314,-500.0,0.00016438,2]
[330390196,1719341453323,-151.0,0.00016438,2]
[330390197,1719341453335,-643.313059,0.00016438,2]
[330390198,1719341453345,-151.0,0.00016438,2]
[330390199,1719341453354,-643.313059,0.00016438,2]
[330390200,1719341453364,-151.0,0.00016438,2]
[330390201,1719341453373,-3223.87,0.00016438,2]
[330390202,1719341453385,-729.14,0.00016438,2]
[330390203,1719341453394,-502.56790091,0.00016438,2]
[330390204,1719341453403,-643.313059,0.00016438,2]
[330390205,1719341453412,-643.313059,0.00016438,2]
[330390206,1719341453421,-151.0,0.00016438,2]
[330390207,1719341453430,-68.54991704,0.00016438,2]
[330390208,1719341453504,-574.76314196,0.00016438,2]
[330390209,1719341453514,-151.0,0.00016438,2]
[330390210,1719341453524,-643.313054,0.00016438,2]
[330390211,1719341453533,-151.0,0.00016438,2]
[330390212,1719341453544,-151.0,0.00016438,2]
[330390213,1719341453553,-151.0,0.00016438,2]
[330390214,1719341453563,-504.27895333,0.00016438,2]
[330390215,1719341453572,-151.0,0.00016438,2]
[330390216,1719341453581,-254.104475,0.00016438,2]
[330390217,1719341453590,-77.99991143,0.00016438,2]
[330390224,1719341808404,154.83742071,9.999e-05,2]
[330390226,1719341839081,19344.61522375,9.999e-05,2]
[330390231,1719341896570,19344.61522375,0.0001212,2]
[330390232,1719341956579,19344.61522375,0.0001212,2]
[330390238,1719342154086,19344.61522375,0.0001212,2]
[330390239,1719342174583,2097.8943503,0.0001212,2]
[330390240,1719342195173,182.30443198,9.999e-05,2]
[330390241,1719342212063,2097.8943503,0.0001212,2]
[330390243,1719342235168,182.30443198,0.0001212,2]
[330390244,1719342256084,15649.76722207,9.999e-05,2]
[330390245,1719342273080,1452.19308048,0.0001212,2]
[330390246,1719342275170,182.30443198,0.0001212,2]
[330390248,1719342428315,332.21,0.0001,10]
[330390252,1719342485397,250.0,0.00013924,2]
[330390338,1719342633198,-524.35716251,0.00014088,2]
[330390340,1719342633207,-61.88024746,0.00014088,2]
[330390342,1719342633219,-510.30323151,0.00014088,2]
[330390845,1719342638287,-297.99053283,0.00014088,2]
[330390847,1719342638297,-154.83742071,0.00014128,2]
[330390849,1719342638307,-1487.40194776,0.00014128,2]
[330390851,1719342638317,-3000.0,0.00014202,2]
[330390853,1719342638327,-182.30443198,0.00014316,2]
[330390855,1719342638336,-300.0,0.00014317,2]
[330390857,1719342638346,-182.30443198,0.00014318,2]
[330390859,1719342638356,-24890.0,0.00014319,2]
[330390861,1719342638367,-570.16123474,0.00014608,2]
[330391022,1719342640536,-1556.73599433,0.00014608,2]
[330391024,1719342640546,-179.39588634,0.00014691,2]
[330391026,1719342640556,-986.59379466,0.00014788,2]
[330391028,1719342640566,-177.63352354,0.000149,2]
[330391040,1719342640721,-490.34211049,0.00015685,2]
[330391042,1719342640731,-530.18458997,0.00015686,2]
[330391044,1719342640741,-195.36861794,0.00015687,2]
[330391046,1719342640751,-157.02042642,0.00015687,2]
[330391048,1719342640763,-947.59886703,0.00015688,2]
[330391050,1719342640772,-1060.82542535,0.00015688,4]
[330391052,1719342640782,-239.93631843,0.00015688,2]
[330391053,1719342640791,-154.83742071,0.00015688,2]
[330391055,1719342640802,-210.22902618,0.00015689,2]
[330391057,1719342640812,-300.0,0.00016129,2]
[330391059,1719342640822,-308.12355769,0.00016282,2]
[330391061,1719342640832,-526.62285573,0.00016337,2]
[330391063,1719342640841,-2000.0,0.00016338,2]
[330391065,1719342640851,-5280.10467953,0.00016345,2]
[330391067,1719342640861,-250.0,0.000164,2]
[330391069,1719342640871,-250.0,0.000164,2]
[330391071,1719342640881,-500.0,0.000164,2]
[330391073,1719342640891,-500.0,0.00016438,2]
[330391074,1719342640900,-181.58035626,0.00016438,2]
[330391075,1719342640910,-500.0,0.00016438,2]
[330391076,1719342640920,-500.0,0.00016438,2]
[330391077,1719342640929,-500.0,0.00016438,2]
[330391078,1719342640940,-500.0,0.00016438,2]
[330391079,1719342640949,-500.0,0.00016438,2]
[330391080,1719342640958,-500.0,0.00016438,2]
[330391081,1719342640968,-556.79009149,0.00016438,2]
[330391082,1719342640977,-500.0,0.00016438,2]
[330391083,1719342640987,-500.0,0.00016438,2]
[330391084,1719342640996,-500.0,0.00016438,2]
[330391085,1719342641006,-500.0,0.00016438,2]
[330391086,1719342641016,-500.0,0.00016438,2]
[330391087,1719342641025,-500.0,0.00016438,2]
[330391088,1719342641034,-500.0,0.00016438,2]
[330391089,1719342641043,-500.0,0.00016438,2]
[330391090,1719342641053,-500.0,0.00016438,2]
[330391091,1719342641062,-500.0,0.00016438,2]
[330391092,1719342641071,-500.0,0.00016438,2]
[330391093,1719342641080,-580.29580883,0.00016438,2]
[330391094,1719342641089,-570.41805134,0.00016438,2]
[330391095,1719342641099,-500.0,0.00016438,2]
[330391096,1719342641108,-500.0,0.00016438,2]
[330391097,1719342641118,-500.0,0.00016438,2]
[330391098,1719342641127,-500.0,0.00016438,2]
[330391099,1719342641136,-534.76829324,0.00016438,2]
[330391100,1719342641146,-500.0,0.00016438,2]
[330391101,1719342641155,-500.0,0.00016438,2]
[330391102,1719342641166,-500.0,0.00016438,2]
[330391104,1719342641176,-500.0,0.00016438,2]
[330391105,1719342641185,-500.0,0.00016438,2]
[330391106,1719342641194,-500.0,0.00016438,2]
[330391107,1719342641203,-769.43,0.00016438,2]
[330391108,1719342641213,-500.0,0.00016438,2]
[330391109,1719342641222,-500.0,0.00016438,2]
[330391110,1719342641230,-500.0,0.00016438,2]
[330391111,1719342641239,-500.0,0.00016438,2]
[330391112,1719342641249,-1441.65,0.00016438,2]
[330391113,1719342641258,-500.0,0.00016438,2]
[330391114,1719342641267,-500.0,0.00016438,2]
[330391115,1719342641276,-640.76519159,0.00016438,2]
[330391116,1719342641285,-500.0,0.00016438,2]
[330391117,1719342641295,-500.0,0.00016438,2]
[330391118,1719342641303,-500.0,0.00016438,2]
[330391119,1719342641312,-500.0,0.00016438,2]
[330391120,1719342641321,-612.92,0.00016438,2]
[330391121,1719342641330,-506.24836085,0.00016438,2]
[330391122,1719342641339,-500.0,0.00016438,2]
[330391123,1719342641348,-500.0,0.00016438,2]
[330391124,1719342641357,-1279.88,0.00016438,2]
[330391125,1719342641367,-500.0,0.00016438,2]
[330391126,1719342641376,-500.0,0.00016438,2]
[330391127,1719342641384,-500.0,0.00016438,2]
[330391128,1719342641393,-611.08417766,0.00016438,2]
[330391129,1719342641403,-500.0,0.00016438,2]
[330391130,1719342641411,-219.42090774,0.00016438,2]
[330391131,1719342641420,-500.0,0.00016438,2]
[330391132,1719342641429,-500.0,0.00016438,2]
[330391133,1719342641438,-500.0,0.00016438,2]
[330391134,1719342641447,-504.13792693,0.00016438,2]
[330391135,1719342641456,-500.0,0.00016438,2]
[330391136,1719342641465,-500.0,0.00016438,2]
[330391137,1719342641474,-500.0,0.00016438,2]
[330391138,1719342641483,-500.0,0.00016438,2]
[330391139,1719342641492,-1037.94,0.00016438,2]
[330391140,1719342641501,-500.0,0.00016438,2]
[330391141,1719342641510,-500.0,0.00016438,2]
[330391142,1719342641518,-500.0,0.00016438,2]
[330391143,1719342641527,-500.0,0.00016438,2]
[330391144,1719342641536,-500.0,0.00016438,2]
[330391145,1719342641545,-500.0,0.00016438,2]
[330391146,1719342641554,-343.36113508,0.00016438,2]
[330391147,1719342641563,-500.0,0.00016438,2]
[330391148,1719342641571,-500.0,0.00016438,2]
[330391149,1719342641580,-500.0,0.00016438,2]
[330391150,1719342641589,-500.0,0.00016438,2]
[330391151,1719342641598,-500.0,0.00016438,2]
[330391152,1719342641607,-500.0,0.00016438,2]
[330391153,1719342641616,-500.0,0.00016438,2]
[330391154,1719342641625,-500.0,0.00016438,2]
[330391155,1719342641634,-526.48130982,0.00016438,2]
[330391156,1719342641646,-500.0,0.00016438,2]
[330391157,1719342641655,-500.0,0.00016438,2]
[330391158,1719342641663,-747.79,0.00016438,2]
[330391159,1719342641672,-500.0,0.00016438,2]
[330391160,1719342641681,-500.0,0.00016438,2]
[330391161,1719342641690,-467.35089679,0.00016438,2]
[330391162,1719342641698,-502.70856736,0.00016438,2]
[330391163,1719342641708,-500.0,0.00016438,2]
[330391164,1719342641721,-500.0,0.00016438,2]
[330391165,1719342641730,-500.0,0.00016438,2]
[330391166,1719342641740,-500.0,0.00016438,2]
[330391167,1719342641749,-504.72698556,0.00016438,2]
[330391168,1719342641760,-500.0,0.00016438,2]
[330391169,1719342641769,-1282.49,0.00016438,2]
[330391170,1719342641778,-500.0,0.00016438,2]
[330391171,1719342641787,-500.0,0.00016438,2]
[330391172,1719342641798,-446.8907223,0.00016438,2]
[330391173,1719342641807,-500.0,0.00016438,2]
[330391174,1719342641816,-500.0,0.00016438,2]
[330391175,1719342641824,-500.0,0.00016438,2]
[330391176,1719342641833,-500.0,0.00016438,2]
[330391177,1719342641842,-500.0,0.00016438,2]
[330391178,1719342641851,-500.0,0.00016438,2]
[330391179,1719342641861,-500.0,0.00016438,2]
[330391180,1719342641870,-500.0,0.00016438,2]
[330391181,1719342641879,-1692.75,0.00016438,2]
[330391182,1719342641889,-588.41,0.00016438,2]
[330391183,1719342641898,-500.0,0.00016438,2]
[330391184,1719342641908,-500.0,0.00016438,2]
[330391185,1719342641917,-500.0,0.00016438,2]
[330391186,1719342641926,-500.0,0.00016438,2]
[330391187,1719342641935,-619.76,0.00016438,2]
[330391188,1719342641944,-500.0,0.00016438,2]
[330391189,1719342641956,-500.0,0.00016438,2]
[330391190,1719342641977,-1312.93,0.00016438,2]
[330391191,1719342641986,-500.0,0.00016438,2]
[330391192,1719342641995,-500.0,0.00016438,2]
[330391193,1719342642004,-507.62554535,0.00016438,2]
[330391194,1719342642014,-500.0,0.00016438,2]
[330391195,1719342642026,-541.36,0.00016438,2]
[330391196,1719342642041,-500.0,0.00016438,2]
[330391197,1719342642050,-500.0,0.00016438,2]
[330391198,1719342642060,-500.0,0.00016438,2]
[330391199,1719342642070,-593.84049925,0.00016438,2]
[330391200,1719342642087,-520.28485859,0.00016438,2]
[330391201,1719342642098,-74.41464216,0.00016438,2]
[330391202,1719342642108,-500.0,0.00016438,2]
[330391203,1719342642118,-500.0,0.00016438,2]
[330391204,1719342642128,-500.0,0.00016438,2]
[330391205,1719342642137,-508.45395253,0.00016438,2]
[330391206,1719342642146,-500.0,0.00016438,2]
[330391207,1719342642157,-608.35,0.00016438,2]
[330391208,1719342642166,-516.02785481,0.00016438,2]
[330391209,1719342642176,-500.0,0.00016438,2]
[330391210,1719342642185,-500.0,0.00016438,2]
[330391211,1719342642195,-500.0,0.00016438,2]
[330391212,1719342642205,-500.0,0.00016438,2]
[330391213,1719342642214,-500.0,0.00016438,2]
[330391214,1719342642224,-500.0,0.00016438,2]
[330391215,1719342642234,-500.0,0.00016438,2]
[330391216,1719342642243,-183.6907896,0.00016438,2]
[330391217,1719342642252,-500.0,0.00016438,2]
[330391218,1719342642261,-500.0,0.00016438,2]
[330391219,1719342642270,-500.0,0.00016438,2]
[330391220,1719342642279,-502.20800963,0.00016438,2]
[330391221,1719342642289,-500.0,0.00016438,2]
[330391222,1719342642299,-500.0,0.00016438,2]
[330391223,1719342642307,-665.2,0.00016438,2]
[330391224,1719342642317,-500.0,0.00016438,2]
[330391225,1719342642327,-500.0,0.00016438,2]
[330391226,1719342642336,-500.0,0.00016438,2]
[330391227,1719342642346,-500.0,0.00016438,2]
[330391228,1719342642356,-508.16291804,0.00016438,2]
[330391229,1719342642365,-500.0,0.00016438,2]
[330391230,1719342642374,-278.92094473,0.00016438,2]
[330391231,1719342642384,-500.0,0.00016438,2]
[330391232,1719342642393,-500.0,0.00016438,2]
[330391233,1719342642402,-500.0,0.00016438,2]
[330391234,1719342642411,-500.0,0.00016438,2]
[330391235,1719342642420,-500.0,0.00016438,2]
[330391236,1719342642430,-500.0,0.00016438,2]
[330391237,1719342642440,-500.0,0.00016438,2]
[330391238,1719342642449,-500.0,0.00016438,2]
[330391239,1719342642458,-2430.4830325,0.00016438,2]
[330391273,1719342643614,-101.4369675,0.00016438,2]
[330391274,1719342643624,-667.29,0.00016438,2]
[330391275,1719342643633,-500.0,0.00016438,2]
[330391276,1719342643643,-500.0,0.00016438,2]
[330391277,1719342643654,-1394.59,0.00016438,2]
[330391278,1719342643663,-504.72030031,0.00016438,2]
[330391279,1719342643672,-500.0,0.00016438,2]
[330391281,1719342643682,-8628.86,0.00016438,2]
[330391283,1719342643692,-500.0,0.00016438,2]
[330391285,1719342643701,-508.14249447,0.00016438,2]
[330391287,1719342643710,-500.0,0.00016438,2]
[330391289,1719342643724,-500.0,0.00016438,2]
[330391291,1719342643733,-518.55987739,0.00016438,2]
[330391293,1719342643748,-500.0,0.00016438,2]
[330391295,1719342643757,-500.0,0.00016438,2]
[330391297,1719342643767,-500.0,0.00016438,2]
[330391299,1719342643776,-500.0,0.00016438,2]
[330391301,1719342643785,-500.0,0.00016438,2]
[330391303,1719342643795,-915.09,0.00016438,2]
[330391305,1719342643805,-500.0,0.00016438,2]
[330391307,1719342643815,-504.67531698,0.00016438,2]
[330391309,1719342643823,-850.3,0.00016438,2]
[330391311,1719342643833,-500.0,0.00016438,2]
[330391313,1719342643842,-500.0,0.00016438,2]
[330391315,1719342643851,-500.0,0.00016438,2]
[330391317,1719342643864,-1051.59975902,0.00016438,2]
[330391319,1719342643873,-377.78208816,0.00016438,2]
[330391321,1719342643883,-1739.18,0.00016438,2]
[330391323,1719342643892,-329.3562189,0.00016438,2]
[330391325,1719342643901,-500.0,0.00016438,2]
[330391326,1719342643912,-500.0,0.00016438,2]
[330391328,1719342643922,-500.0,0.00016438,2]
[330391329,1719342643931,-500.0,0.00016438,2]
[330391330,1719342643940,-500.0,0.00016438,2]
[330391331,1719342643950,-501.83041164,0.00016438,2]
[330391332,1719342643959,-500.0,0.00016438,2]
[330391333,1719342643969,-500.0,0.00016438,2]
[330391334,1719342643978,-500.0,0.00016438,2]
[330391335,1719342643988,-151.0,0.00016438,2]
[330391336,1719342643998,-151.0,0.00016438,2]
[330391337,1719342644007,-151.0,0.00016438,2]
[330391338,1719342644017,-639.67,0.00016438,2]
[330391339,1719342644027,-639.67,0.00016438,2]
[330391340,1719342644036,-151.0,0.00016438,2]
[330391341,1719342644045,-639.67,0.00016438,2]
[330391342,1719342644054,-639.67,0.00016438,2]
[330391343,1719342644063,-639.67,0.00016438,2]
[330391344,1719342644175,-639.67,0.00016438,2]
[330391345,1719342644210,-639.67,0.00016438,2]
[330391346,1719342644220,-639.67,0.00016438,2]
[330391347,1719342644229,-639.67,0.00016438,2]
[330391348,1719342644238,-639.67,0.00016438,2]
[330391349,1719342644247,-639.67,0.00016438,2]
[330391350,1719342644257,-639.67,0.00016438,2]
[330391351,1719342644266,-639.67,0.00016438,2]
[330391352,1719342644276,-639.67,0.00016438,2]
[330391353,1719342644285,-639.67,0.00016438,2]
[330391354,1719342644294,-639.67,0.00016438,2]
[330391355,1719342644304,-639.67,0.00016438,2]
[330391356,1719342644313,-500.0,0.00016438,2]
[330391357,1719342644323,-639.67,0.00016438,2]
[330391358,1719342644332,-500.0,0.00016438,2]
[330391359,1719342644341,-152.722243,0.00016438,2]
[330391360,1719342644350,-500.0,0.00016438,2]
[330391361,1719342644361,-500.0,0.00016438,2]